[Event "Titled Tuesday Blitz November 29 Late 2022"]
[White "Kaganskiy, Gleb"]
[Black "Tan, Ralph"]
[WhiteFideId "4132025"]
[BlackFideId "30966590"]
[WhiteElo "2165"]
[BlackElo "2059"]
[Result "1/2-1/2"]
[Round "07"]
[TimeControl "180+1"]
[Date "2022.11.30"]
[WhiteClock "0:00:09"]
[BlackClock "0:00:13"]

1. e4 {[%clk 0:03:00]}  e6 {[%clk 0:03:00]} 2. d4 {[%clk 0:03:00]}  d5 {[%clk 0:03:00]} 3. e5 {[%clk 0:03:00]}  c5 {[%clk 0:03:00]} 4. c3 {[%clk 0:03:01]}  Nc6 {[%clk 0:03:00]} 5. Nf3 {[%clk 0:03:01]}  Qb6 {[%clk 0:03:00]} 6. Bd3 {[%clk 0:03:00]}  Bd7 {[%clk 0:02:59]} 7. dxc5 {[%clk 0:02:59]}  Bxc5 {[%clk 0:02:58]} 8. O-O {[%clk 0:02:59]}  a5 {[%clk 0:02:51]} 9. Nbd2 {[%clk 0:02:49]}  Nge7 {[%clk 0:02:50]} 10. c4 {[%clk 0:02:49]}  Ng6 {[%clk 0:02:38]} 11. cxd5 {[%clk 0:02:45]}  exd5 {[%clk 0:02:39]} 12. Nb3 {[%clk 0:02:33]}  Be6 {[%clk 0:02:35]} 13. Nxc5 {[%clk 0:02:32]}  Qxc5 {[%clk 0:02:35]} 14. Be3 {[%clk 0:02:24]}  Qb4 {[%clk 0:02:35]} 15. a3 {[%clk 0:02:18]}  Qg4 {[%clk 0:02:25]} 16. h3 {[%clk 0:02:17]}  Qh5 {[%clk 0:02:24]} 17. Be2 {[%clk 0:01:38]}  Ngxe5 {[%clk 0:02:20]} 18. Nd4 {[%clk 0:01:27]}  Qh4 {[%clk 0:02:10]} 19. f4 {[%clk 0:01:08]}  Nc4 {[%clk 0:01:56]} 20. Bxc4 {[%clk 0:01:04]}  dxc4 {[%clk 0:01:55]} 21. Nxe6 {[%clk 0:01:04]}  fxe6 {[%clk 0:01:55]} 22. f5 {[%clk 0:00:50]}  O-O {[%clk 0:01:50]} 23. fxe6 {[%clk 0:00:49]}  Qe4 {[%clk 0:01:50]} 24. Bc5 {[%clk 0:00:34]}  Rxf1+ {[%clk 0:01:46]} 25. Qxf1 {[%clk 0:00:34]}  Qxe6 {[%clk 0:01:47]} 26. Rc1 {[%clk 0:00:29]}  b5 {[%clk 0:01:38]} 27. a4 {[%clk 0:00:27]}  Qd5 {[%clk 0:01:34]} 28. Qf2 {[%clk 0:00:25]}  bxa4 {[%clk 0:01:29]} 29. Ba3 {[%clk 0:00:18]}  h6 {[%clk 0:01:25]} 30. Qc5 {[%clk 0:00:17]}  Qxc5+ {[%clk 0:01:02]} 31. Bxc5 {[%clk 0:00:18]}  Ne5 {[%clk 0:01:03]} 32. Bd4 {[%clk 0:00:15]}  Nd3 {[%clk 0:00:50]} 33. Rxc4 {[%clk 0:00:13]}  Rb8 {[%clk 0:00:44]} 34. Rxa4 {[%clk 0:00:13]}  Rb5 {[%clk 0:00:44]} 35. Kf1 {[%clk 0:00:12]}  g5 {[%clk 0:00:41]} 36. Ke2 {[%clk 0:00:12]}  Nf4+ {[%clk 0:00:41]} 37. Kd2 {[%clk 0:00:11]}  Nxg2 {[%clk 0:00:39]} 38. Bc3 {[%clk 0:00:11]}  Nf4 {[%clk 0:00:35]} 39. h4 {[%clk 0:00:11]}  Rd5+ {[%clk 0:00:34]} 40. Kc2 {[%clk 0:00:11]}  Ng2 {[%clk 0:00:24]} 41. hxg5 {[%clk 0:00:10]}  hxg5 {[%clk 0:00:24]} 42. Rxa5 {[%clk 0:00:11]}  Ne3+ {[%clk 0:00:21]} 43. Kb3 {[%clk 0:00:09]}  Rxa5 {[%clk 0:00:19]} 44. Bxa5 {[%clk 0:00:10]}  g4 {[%clk 0:00:18]} 45. Bc7 {[%clk 0:00:08]}  Kf7 {[%clk 0:00:18]} 46. Bb8 {[%clk 0:00:06]}  Ke6 {[%clk 0:00:18]} 47. Kc3 {[%clk 0:00:05]}  Nd5+ {[%clk 0:00:15]} 48. Kd2 {[%clk 0:00:05]}  Kf5 {[%clk 0:00:15]} 49. Ke2 {[%clk 0:00:05]}  Ke4 {[%clk 0:00:15]} 50. Kf2 {[%clk 0:00:05]}  Nb4 {[%clk 0:00:13]} 51. Kg3 {[%clk 0:00:05]}  Kf5 {[%clk 0:00:13]} 52. b3 {[%clk 0:00:04]}  Nd3 {[%clk 0:00:13]} 53. Bc7 {[%clk 0:00:04]}  Nc5 {[%clk 0:00:13]} 54. Bb8 {[%clk 0:00:04]}  Nxb3 {[%clk 0:00:13]} 55. Kg2 {[%clk 0:00:04]}  Nd2 {[%clk 0:00:13]} 56. Kg3 {[%clk 0:00:04]}  Ne4+ {[%clk 0:00:14]} 57. Kg2 {[%clk 0:00:04]}  Ng5 {[%clk 0:00:14]} 58. Kg3 {[%clk 0:00:05]}  Nf3 {[%clk 0:00:15]} 59. Kg2 {[%clk 0:00:06]}  Nh4+ {[%clk 0:00:15]} 60. Kg3 {[%clk 0:00:06]}  Ng6 {[%clk 0:00:16]} 61. Kg2 {[%clk 0:00:07]}  Ne7 {[%clk 0:00:16]} 62. Kg3 {[%clk 0:00:08]}  Nd5 {[%clk 0:00:17]} 63. Kg2 {[%clk 0:00:08]}  Nf6 {[%clk 0:00:16]} 64. Kg3 {[%clk 0:00:09]}  Ne4+ {[%clk 0:00:16]} 65. Kg2 {[%clk 0:00:08]}  Ke6 {[%clk 0:00:17]} 66. Bh2 {[%clk 0:00:07]}  Kd5 {[%clk 0:00:17]} 67. Bg3 {[%clk 0:00:08]}  Kd4 {[%clk 0:00:18]} 68. Bh2 {[%clk 0:00:08]}  Ke3 {[%clk 0:00:18]} 69. Bg3 {[%clk 0:00:09]}  Ke2 {[%clk 0:00:19]} 70. Bh2 {[%clk 0:00:09]}  Ke3 {[%clk 0:00:16]} 71. Bg3 {[%clk 0:00:10]}  Ng5 {[%clk 0:00:16]} 72. Bb8 {[%clk 0:00:09]}  Ne4 {[%clk 0:00:13]} 73. Bg3 {[%clk 0:00:09]} 1/2-1/2


[Site "https://www.chess.com"]

[Event "Titled Tuesday Blitz November 29 Late 2022"]
[White "Kleiman, Jake"]
[Black "Szyszylo, Rafal"]
[WhiteFideId "2020041"]
[BlackFideId "1109626"]
[WhiteElo "2614"]
[BlackElo "1981"]
[Result "1-0"]
[Round "07"]
[TimeControl "180+1"]
[Date "2022.11.30"]
[WhiteClock "0:00:15"]
[BlackClock "0:00:01"]

1. Nf3 {[%clk 0:03:00]}  d6 {[%clk 0:02:55]} 2. g3 {[%clk 0:02:59]}  g6 {[%clk 0:02:54]} 3. Bg2 {[%clk 0:02:54]}  Bg7 {[%clk 0:02:55]} 4. O-O {[%clk 0:02:54]}  Nf6 {[%clk 0:02:56]} 5. d3 {[%clk 0:02:54]}  O-O {[%clk 0:02:56]} 6. e4 {[%clk 0:02:48]}  e5 {[%clk 0:02:56]} 7. a4 {[%clk 0:02:47]}  Bg4 {[%clk 0:02:48]} 8. Nbd2 {[%clk 0:02:45]}  a5 {[%clk 0:02:47]} 9. h3 {[%clk 0:02:43]}  Bxf3 {[%clk 0:02:44]} 10. Nxf3 {[%clk 0:02:44]}  h6 {[%clk 0:02:40]} 11. c3 {[%clk 0:02:44]}  c5 {[%clk 0:02:39]} 12. Nd2 {[%clk 0:02:44]}  Nc6 {[%clk 0:02:33]} 13. Nc4 {[%clk 0:02:44]}  Rc8 {[%clk 0:02:33]} 14. f4 {[%clk 0:02:27]}  Nh5 {[%clk 0:02:29]} 15. Qf3 {[%clk 0:02:22]}  exf4 {[%clk 0:02:21]} 16. gxf4 {[%clk 0:02:22]}  Nf6 {[%clk 0:02:09]} 17. Bd2 {[%clk 0:02:04]}  Nh7 {[%clk 0:01:46]} 18. Qg3 {[%clk 0:02:00]}  Ne7 {[%clk 0:01:38]} 19. f5 {[%clk 0:01:53]}  d5 {[%clk 0:01:38]} 20. exd5 {[%clk 0:01:21]}  Nxf5 {[%clk 0:01:36]} 21. Rxf5 {[%clk 0:01:21]}  gxf5 {[%clk 0:01:37]} 22. Nd6 {[%clk 0:00:57]}  Qf6 {[%clk 0:01:02]} 23. Nxc8 {[%clk 0:00:53]}  Rxc8 {[%clk 0:01:03]} 24. Rf1 {[%clk 0:00:52]}  Re8 {[%clk 0:00:56]} 25. Qf3 {[%clk 0:00:41]}  Ng5 {[%clk 0:00:46]} 26. Qxf5 {[%clk 0:00:40]}  Qxf5 {[%clk 0:00:39]} 27. Rxf5 {[%clk 0:00:41]}  Re2 {[%clk 0:00:31]} 28. Rf2 {[%clk 0:00:40]}  Re7 {[%clk 0:00:17]} 29. Kf1 {[%clk 0:00:34]}  Rd7 {[%clk 0:00:16]} 30. h4 {[%clk 0:00:30]}  Nh7 {[%clk 0:00:16]} 31. Rf5 {[%clk 0:00:29]}  b6 {[%clk 0:00:09]} 32. Bf4 {[%clk 0:00:24]}  Bf8 {[%clk 0:00:10]} 33. Kf2 {[%clk 0:00:23]}  Bd6 {[%clk 0:00:10]} 34. Bxh6 {[%clk 0:00:22]}  f6 {[%clk 0:00:07]} 35. Be4 {[%clk 0:00:20]}  Kf7 {[%clk 0:00:06]} 36. Rh5 {[%clk 0:00:18]}  Nf8 {[%clk 0:00:06]} 37. Be3 {[%clk 0:00:17]}  Be5 {[%clk 0:00:02]} 38. Kf3 {[%clk 0:00:17]}  Ke8 {[%clk 0:00:01]} 39. d4 {[%clk 0:00:15]} 1-0


[Site "https://www.chess.com"]

[Event "Titled Tuesday Blitz November 29 Late 2022"]
[White "Koellner, Ruben Gideon"]
[Black "Kowalski, Igor"]
[WhiteFideId "12993093"]
[BlackFideId "1172468"]
[WhiteElo "2303"]
[BlackElo "2317"]
[Result "0-1"]
[Round "07"]
[TimeControl "180+1"]
[Date "2022.11.30"]
[WhiteClock "0:00:07"]
[BlackClock "0:00:19"]

1. d4 {[%clk 0:03:00]}  Nf6 {[%clk 0:03:00]} 2. Nf3 {[%clk 0:03:00]}  g6 {[%clk 0:02:59]} 3. Nbd2 {[%clk 0:03:00]}  d5 {[%clk 0:02:59]} 4. e3 {[%clk 0:03:01]}  Bg7 {[%clk 0:03:00]} 5. b4 {[%clk 0:03:02]}  O-O {[%clk 0:03:01]} 6. c4 {[%clk 0:03:02]}  a5 {[%clk 0:03:01]} 7. b5 {[%clk 0:03:02]}  c5 {[%clk 0:03:01]} 8. dxc5 {[%clk 0:03:03]}  Nbd7 {[%clk 0:03:00]} 9. Ba3 {[%clk 0:03:02]}  Ne4 {[%clk 0:03:00]} 10. Nxe4 {[%clk 0:03:00]}  dxe4 {[%clk 0:03:01]} 11. Nd4 {[%clk 0:02:59]}  a4 {[%clk 0:02:49]} 12. Rc1 {[%clk 0:02:55]}  Re8 {[%clk 0:02:14]} 13. Be2 {[%clk 0:02:41]}  e5 {[%clk 0:02:12]} 14. Nc2 {[%clk 0:02:33]}  Bf8 {[%clk 0:02:02]} 15. Qd5 {[%clk 0:02:27]}  Qa5+ {[%clk 0:01:56]} 16. Bb4 {[%clk 0:02:26]}  Qc7 {[%clk 0:01:55]} 17. Qxe4 {[%clk 0:01:28]}  Nxc5 {[%clk 0:01:32]} 18. Qh4 {[%clk 0:00:57]}  Be7 {[%clk 0:01:23]} 19. Qh6 {[%clk 0:00:54]}  Bf8 {[%clk 0:01:22]} 20. Qh4 {[%clk 0:00:54]}  Be7 {[%clk 0:00:43]} 21. Qh6 {[%clk 0:00:50]}  Bf8 {[%clk 0:00:25]} 22. Qg5 {[%clk 0:00:36]}  Ne6 {[%clk 0:00:24]} 23. Qg3 {[%clk 0:00:34]}  Bxb4+ {[%clk 0:00:15]} 24. Nxb4 {[%clk 0:00:35]}  Qa5 {[%clk 0:00:16]} 25. a3 {[%clk 0:00:36]}  Nc5 {[%clk 0:00:16]} 26. O-O {[%clk 0:00:32]}  Bf5 {[%clk 0:00:17]} 27. Nd5 {[%clk 0:00:28]}  Kg7 {[%clk 0:00:17]} 28. Qh4 {[%clk 0:00:26]}  Qd8 {[%clk 0:00:17]} 29. Qxd8 {[%clk 0:00:23]}  Raxd8 {[%clk 0:00:18]} 30. Rfd1 {[%clk 0:00:19]}  Rd6 {[%clk 0:00:18]} 31. f3 {[%clk 0:00:19]}  e4 {[%clk 0:00:17]} 32. f4 {[%clk 0:00:14]}  Red8 {[%clk 0:00:17]} 33. Rd4 {[%clk 0:00:13]}  Nb3 {[%clk 0:00:17]} 34. Rcd1 {[%clk 0:00:13]}  Nxd4 {[%clk 0:00:17]} 35. Rxd4 {[%clk 0:00:14]}  Be6 {[%clk 0:00:17]} 36. Rxe4 {[%clk 0:00:12]}  Bxd5 {[%clk 0:00:17]} 37. cxd5 {[%clk 0:00:13]}  Rxd5 {[%clk 0:00:18]} 38. Rxa4 {[%clk 0:00:13]}  Rd2 {[%clk 0:00:18]} 39. Bf3 {[%clk 0:00:13]}  Rb2 {[%clk 0:00:17]} 40. Rb4 {[%clk 0:00:12]}  Rxb4 {[%clk 0:00:14]} 41. axb4 {[%clk 0:00:13]}  b6 {[%clk 0:00:15]} 42. Kf2 {[%clk 0:00:12]}  Rd2+ {[%clk 0:00:16]} 43. Kg3 {[%clk 0:00:12]}  Rb2 {[%clk 0:00:17]} 44. Bc6 {[%clk 0:00:12]}  Rxb4 {[%clk 0:00:17]} 45. Kf3 {[%clk 0:00:13]}  f5 {[%clk 0:00:18]} 46. g4 {[%clk 0:00:12]}  Kf6 {[%clk 0:00:18]} 47. h4 {[%clk 0:00:12]}  fxg4+ {[%clk 0:00:15]} 48. Kxg4 {[%clk 0:00:13]}  h6 {[%clk 0:00:14]} 49. Kf3 {[%clk 0:00:08]}  Rb2 {[%clk 0:00:14]} 50. Kg3 {[%clk 0:00:08]}  Re2 {[%clk 0:00:14]} 51. Kf3 {[%clk 0:00:08]}  Re1 {[%clk 0:00:14]} 52. Kf2 {[%clk 0:00:07]}  Rc1 {[%clk 0:00:15]} 53. Kf3 {[%clk 0:00:07]}  Rc5 {[%clk 0:00:16]} 54. Kg3 {[%clk 0:00:07]}  Ke7 {[%clk 0:00:16]} 55. Kg4 {[%clk 0:00:07]}  Kd6 {[%clk 0:00:16]} 56. e4 {[%clk 0:00:08]}  Rc1 {[%clk 0:00:16]} 57. h5 {[%clk 0:00:08]}  Rg1+ {[%clk 0:00:16]} 58. Kf3 {[%clk 0:00:08]}  gxh5 {[%clk 0:00:16]} 59. e5+ {[%clk 0:00:08]}  Ke6 {[%clk 0:00:16]} 60. Bb7 {[%clk 0:00:07]}  Rf1+ {[%clk 0:00:16]} 61. Ke4 {[%clk 0:00:08]}  Re1+ {[%clk 0:00:16]} 62. Kf3 {[%clk 0:00:09]}  Rb1 {[%clk 0:00:17]} 63. Bc8+ {[%clk 0:00:08]}  Ke7 {[%clk 0:00:17]} 64. Ba6 {[%clk 0:00:08]}  Rb3+ {[%clk 0:00:15]} 65. Kg2 {[%clk 0:00:06]}  h4 {[%clk 0:00:15]} 66. f5 {[%clk 0:00:06]}  Re3 {[%clk 0:00:16]} 67. f6+ {[%clk 0:00:05]}  Kf7 {[%clk 0:00:16]} 68. Bb7 {[%clk 0:00:04]}  Rxe5 {[%clk 0:00:16]} 69. Bc6 {[%clk 0:00:05]}  Kxf6 {[%clk 0:00:16]} 70. Kh3 {[%clk 0:00:06]}  Kg5 {[%clk 0:00:17]} 71. Bd7 {[%clk 0:00:06]}  Re3+ {[%clk 0:00:18]} 72. Kh2 {[%clk 0:00:06]}  Kf4 {[%clk 0:00:19]} 73. Bc6 {[%clk 0:00:07]}  Rd3 {[%clk 0:00:17]} 74. Bb7 {[%clk 0:00:07]}  Ke5 {[%clk 0:00:18]} 75. Bc6 {[%clk 0:00:07]}  Kd6 {[%clk 0:00:18]} 76. Be8 {[%clk 0:00:07]}  Kc5 {[%clk 0:00:19]} 0-1


[Site "https://www.chess.com"]

[Event "Titled Tuesday Blitz November 29 Late 2022"]
[White "Leebit02"]
[Black "Besedes, Danilo"]
[BlackFideId "946796"]
[WhiteElo "2295"]
[BlackElo "2352"]
[Result "1-0"]
[Round "07"]
[TimeControl "180+1"]
[Date "2022.11.30"]
[WhiteClock "0:01:07"]
[BlackClock "0:01:36"]

1. e4 {[%clk 0:03:00]}  d6 {[%clk 0:02:58]} 2. d4 {[%clk 0:03:00]}  Nf6 {[%clk 0:02:59]} 3. Nc3 {[%clk 0:03:01]}  g6 {[%clk 0:03:00]} 4. f4 {[%clk 0:03:01]}  Bg7 {[%clk 0:03:00]} 5. Nf3 {[%clk 0:03:01]}  O-O {[%clk 0:03:01]} 6. Be3 {[%clk 0:03:01]}  Bg4 {[%clk 0:03:01]} 7. Qd2 {[%clk 0:03:01]}  Nc6 {[%clk 0:03:02]} 8. O-O-O {[%clk 0:02:59]}  Bxf3 {[%clk 0:03:01]} 9. gxf3 {[%clk 0:02:59]}  e5 {[%clk 0:03:02]} 10. fxe5 {[%clk 0:02:45]}  dxe5 {[%clk 0:03:01]} 11. d5 {[%clk 0:02:44]}  Nd4 {[%clk 0:03:02]} 12. Bg2 {[%clk 0:02:38]}  c5 {[%clk 0:03:00]} 13. Kb1 {[%clk 0:02:35]}  b5 {[%clk 0:02:57]} 14. Bg5 {[%clk 0:02:26]}  b4 {[%clk 0:02:53]} 15. Ne2 {[%clk 0:02:25]}  Qa5 {[%clk 0:02:50]} 16. f4 {[%clk 0:02:16]}  Nd7 {[%clk 0:02:43]} 17. Nxd4 {[%clk 0:02:05]}  cxd4 {[%clk 0:02:44]} 18. f5 {[%clk 0:02:05]}  Rfc8 {[%clk 0:02:37]} 19. Rhf1 {[%clk 0:02:00]}  Nb6 {[%clk 0:02:33]} 20. Qf2 {[%clk 0:01:54]}  Na4 {[%clk 0:02:16]} 21. Ka1 {[%clk 0:01:31]}  f6 {[%clk 0:02:11]} 22. Bc1 {[%clk 0:01:24]}  Rab8 {[%clk 0:02:04]} 23. fxg6 {[%clk 0:01:22]}  hxg6 {[%clk 0:02:05]} 24. Bh3 {[%clk 0:01:22]}  Rc3 {[%clk 0:01:50]} 25. Be6+ {[%clk 0:01:19]}  Kf8 {[%clk 0:01:47]} 26. Qh4 {[%clk 0:01:12]}  Qd8 {[%clk 0:01:35]} 27. bxc3 {[%clk 0:01:07]}  bxc3 {[%clk 0:01:36]} 28. Ba3+ {[%clk 0:01:07]} 1-0


[Site "https://www.chess.com"]

[Event "Titled Tuesday Blitz November 29 Late 2022"]
[White "Leitao, Rafael"]
[Black "Abasov, Nijat"]
[WhiteFideId "2101246"]
[BlackFideId "13402960"]
[WhiteElo "2609"]
[BlackElo "2546"]
[Result "0-1"]
[Round "07"]
[TimeControl "180+1"]
[Date "2022.11.30"]
[WhiteClock "0:00:04"]
[BlackClock "0:00:03"]

1. c4 {[%clk 0:03:00]}  b6 {[%clk 0:02:58]} 2. Nc3 {[%clk 0:02:57]}  Bb7 {[%clk 0:02:57]} 3. d4 {[%clk 0:02:57]}  e6 {[%clk 0:02:55]} 4. Nf3 {[%clk 0:02:55]}  Nf6 {[%clk 0:02:55]} 5. a3 {[%clk 0:02:51]}  d5 {[%clk 0:02:55]} 6. cxd5 {[%clk 0:02:51]}  Nxd5 {[%clk 0:02:56]} 7. e3 {[%clk 0:02:50]}  Be7 {[%clk 0:02:55]} 8. Bb5+ {[%clk 0:02:50]}  c6 {[%clk 0:02:55]} 9. Bd3 {[%clk 0:02:49]}  O-O {[%clk 0:02:55]} 10. e4 {[%clk 0:02:50]}  Nxc3 {[%clk 0:02:55]} 11. bxc3 {[%clk 0:02:51]}  c5 {[%clk 0:02:56]} 12. O-O {[%clk 0:02:50]}  Qc7 {[%clk 0:02:55]} 13. Qe2 {[%clk 0:02:47]}  Rd8 {[%clk 0:02:56]} 14. Bb2 {[%clk 0:02:45]}  Nd7 {[%clk 0:02:54]} 15. Rad1 {[%clk 0:02:41]}  Nf8 {[%clk 0:02:51]} 16. Ne5 {[%clk 0:02:33]}  Rac8 {[%clk 0:02:46]} 17. f4 {[%clk 0:02:32]}  cxd4 {[%clk 0:02:37]} 18. cxd4 {[%clk 0:02:32]}  f6 {[%clk 0:02:37]} 19. Nf3 {[%clk 0:02:19]}  Qxf4 {[%clk 0:02:35]} 20. d5 {[%clk 0:02:11]}  Bc5+ {[%clk 0:02:28]} 21. Kh1 {[%clk 0:02:11]}  exd5 {[%clk 0:02:27]} 22. e5 {[%clk 0:02:11]}  d4 {[%clk 0:02:24]} 23. exf6 {[%clk 0:01:59]}  Qxf6 {[%clk 0:02:23]} 24. Ne5 {[%clk 0:01:51]}  Qe6 {[%clk 0:02:19]} 25. Rde1 {[%clk 0:01:35]}  Re8 {[%clk 0:02:06]} 26. Bf5 {[%clk 0:01:28]}  Qxe5 {[%clk 0:01:57]} 27. Qxe5 {[%clk 0:01:26]}  Rxe5 {[%clk 0:01:58]} 28. Rxe5 {[%clk 0:01:26]}  Rd8 {[%clk 0:01:57]} 29. Bd3 {[%clk 0:01:25]}  Nd7 {[%clk 0:01:18]} 30. Rg5 {[%clk 0:01:08]}  Re8 {[%clk 0:01:00]} 31. h4 {[%clk 0:01:06]}  h6 {[%clk 0:00:55]} 32. Rg3 {[%clk 0:00:50]}  Ne5 {[%clk 0:00:55]} 33. Re1 {[%clk 0:00:47]}  Bc6 {[%clk 0:00:55]} 34. Bb1 {[%clk 0:00:39]}  Re7 {[%clk 0:00:39]} 35. Rd1 {[%clk 0:00:37]}  Rd7 {[%clk 0:00:35]} 36. Re1 {[%clk 0:00:33]}  Re7 {[%clk 0:00:32]} 37. Rd1 {[%clk 0:00:33]}  Rd7 {[%clk 0:00:22]} 38. Re1 {[%clk 0:00:33]}  d3 {[%clk 0:00:06]} 39. Bxe5 {[%clk 0:00:28]}  d2 {[%clk 0:00:07]} 40. Rd1 {[%clk 0:00:13]}  Ba4 {[%clk 0:00:07]} 41. Ba2+ {[%clk 0:00:13]}  Kh7 {[%clk 0:00:07]} 42. Rxd2 {[%clk 0:00:12]}  Re7 {[%clk 0:00:04]} 43. Re2 {[%clk 0:00:11]}  Bb5 {[%clk 0:00:04]} 44. Bb1+ {[%clk 0:00:09]}  Kg8 {[%clk 0:00:04]} 45. Ba2+ {[%clk 0:00:09]}  Kh7 {[%clk 0:00:04]} 46. Re4 {[%clk 0:00:10]}  Bc6 {[%clk 0:00:04]} 47. Reg4 {[%clk 0:00:10]}  g5 {[%clk 0:00:03]} 48. hxg5 {[%clk 0:00:10]}  Rxe5 {[%clk 0:00:03]} 49. g6+ {[%clk 0:00:04]}  Kg7 {[%clk 0:00:03]} 50. Rf4 {[%clk 0:00:04]}  Rh5+ {[%clk 0:00:03]} 0-1


[Site "https://www.chess.com"]

[Event "Titled Tuesday Blitz November 29 Late 2022"]
[White "Lewtak, Damian"]
[Black "Fernandez Guillen, Ernesto J."]
[WhiteFideId "1141724"]
[BlackFideId "3512428"]
[WhiteElo "2329"]
[BlackElo "2450"]
[Result "1-0"]
[Round "07"]
[TimeControl "180+1"]
[Date "2022.11.30"]
[WhiteClock "0:00:29"]
[BlackClock "0:00:08"]

1. e4 {[%clk 0:03:00]}  e5 {[%clk 0:02:58]} 2. Nf3 {[%clk 0:03:00]}  Nc6 {[%clk 0:02:59]} 3. Bb5 {[%clk 0:03:00]}  f5 {[%clk 0:02:53]} 4. d3 {[%clk 0:02:57]}  fxe4 {[%clk 0:02:53]} 5. dxe4 {[%clk 0:02:57]}  Nf6 {[%clk 0:02:53]} 6. Nc3 {[%clk 0:02:55]}  Bb4 {[%clk 0:02:53]} 7. Bxc6 {[%clk 0:02:51]}  bxc6 {[%clk 0:02:52]} 8. O-O {[%clk 0:02:50]}  Bxc3 {[%clk 0:02:51]} 9. bxc3 {[%clk 0:02:50]}  d6 {[%clk 0:02:51]} 10. Nd2 {[%clk 0:02:49]}  O-O {[%clk 0:02:51]} 11. f3 {[%clk 0:02:49]}  Kh8 {[%clk 0:02:51]} 12. Nb3 {[%clk 0:02:49]}  Be6 {[%clk 0:02:50]} 13. Be3 {[%clk 0:02:49]}  Qe8 {[%clk 0:02:49]} 14. Qe2 {[%clk 0:02:48]}  a5 {[%clk 0:02:45]} 15. a4 {[%clk 0:02:47]}  Qg6 {[%clk 0:02:45]} 16. Rf2 {[%clk 0:02:42]}  Rfb8 {[%clk 0:02:40]} 17. c4 {[%clk 0:02:39]}  c5 {[%clk 0:02:37]} 18. Bd2 {[%clk 0:02:36]}  Qf7 {[%clk 0:01:36]} 19. Nxa5 {[%clk 0:02:30]}  Ra6 {[%clk 0:01:37]} 20. Bc3 {[%clk 0:02:02]}  Rba8 {[%clk 0:01:36]} 21. Qd2 {[%clk 0:02:03]}  h6 {[%clk 0:01:29]} 22. Rff1 {[%clk 0:02:02]}  Nd7 {[%clk 0:01:19]} 23. Rfb1 {[%clk 0:01:56]}  Nb6 {[%clk 0:01:18]} 24. Qe1 {[%clk 0:01:44]}  Qg6 {[%clk 0:01:08]} 25. Qg3 {[%clk 0:01:40]}  Qxg3 {[%clk 0:01:07]} 26. hxg3 {[%clk 0:01:40]}  Rxa5 {[%clk 0:01:08]} 27. Bxa5 {[%clk 0:01:38]}  Rxa5 {[%clk 0:01:09]} 28. Rb5 {[%clk 0:01:37]}  Ra6 {[%clk 0:00:08]} 29. a5 {[%clk 0:01:34]}  Nxc4 {[%clk 0:00:08]} 30. f4 {[%clk 0:01:22]}  exf4 {[%clk 0:00:08]} 31. gxf4 {[%clk 0:01:22]}  Kh7 {[%clk 0:00:08]} 32. f5 {[%clk 0:01:17]}  Bg8 {[%clk 0:00:08]} 33. Rb7 {[%clk 0:01:11]}  c6 {[%clk 0:00:08]} 34. f6 {[%clk 0:01:08]}  Kh8 {[%clk 0:00:07]} 35. f7 {[%clk 0:01:05]}  Bxf7 {[%clk 0:00:07]} 36. Rxf7 {[%clk 0:01:05]}  d5 {[%clk 0:00:07]} 37. exd5 {[%clk 0:00:42]}  cxd5 {[%clk 0:00:08]} 38. Rc7 {[%clk 0:00:41]}  Ne3 {[%clk 0:00:02]} 39. Rxc5 {[%clk 0:00:38]}  d4 {[%clk 0:00:02]} 40. Ra4 {[%clk 0:00:33]}  Rg6 {[%clk 0:00:02]} 41. a6 {[%clk 0:00:32]}  Rxg2+ {[%clk 0:00:02]} 42. Kh1 {[%clk 0:00:33]}  Rd2 {[%clk 0:00:01]} 43. a7 {[%clk 0:00:31]}  Rd1+ {[%clk 0:00:01]} 44. Kh2 {[%clk 0:00:32]}  Rd2+ {[%clk 0:00:02]} 45. Kg3 {[%clk 0:00:31]}  Nf1+ {[%clk 0:00:02]} 46. Kf3 {[%clk 0:00:30]}  Nh2+ {[%clk 0:00:03]} 47. Ke4 {[%clk 0:00:31]}  Re2+ {[%clk 0:00:03]} 48. Kd3 {[%clk 0:00:29]}  Re3+ {[%clk 0:00:03]} 49. Kxd4 {[%clk 0:00:29]}  Re8 {[%clk 0:00:03]} 50. a8=Q {[%clk 0:00:29]}  Rxa8 {[%clk 0:00:04]} 51. Rxa8+ {[%clk 0:00:29]}  Kh7 {[%clk 0:00:05]} 52. Ra7 {[%clk 0:00:29]}  Nf3+ {[%clk 0:00:06]} 53. Ke3 {[%clk 0:00:29]}  Ng5 {[%clk 0:00:07]} 54. Rxg5 {[%clk 0:00:29]}  hxg5 {[%clk 0:00:08]} 55. Ra6 {[%clk 0:00:29]} 1-0


[Site "https://www.chess.com"]

[Event "Titled Tuesday Blitz November 29 Late 2022"]
[White "Marin Ramirez, Gerardo"]
[Black "Novikova, Galina"]
[WhiteFideId "3901068"]
[BlackFideId "4157095"]
[WhiteElo "2041"]
[BlackElo "1973"]
[Result "0-1"]
[Round "07"]
[TimeControl "180+1"]
[Date "2022.11.30"]
[WhiteClock "0:00:01"]
[BlackClock "0:01:48"]

1. d4 {[%clk 0:03:00]}  e6 {[%clk 0:03:00]} 2. Nf3 {[%clk 0:03:01]}  d5 {[%clk 0:03:00]} 3. c4 {[%clk 0:03:01]}  c6 {[%clk 0:03:01]} 4. g3 {[%clk 0:02:59]}  Nf6 {[%clk 0:03:00]} 5. Bg2 {[%clk 0:02:59]}  Be7 {[%clk 0:02:59]} 6. Qc2 {[%clk 0:02:56]}  O-O {[%clk 0:02:59]} 7. O-O {[%clk 0:02:56]}  b6 {[%clk 0:02:57]} 8. Bf4 {[%clk 0:02:49]}  Bb7 {[%clk 0:02:57]} 9. Rd1 {[%clk 0:02:47]}  Nbd7 {[%clk 0:02:57]} 10. Ne5 {[%clk 0:02:31]}  Qc8 {[%clk 0:02:57]} 11. Nd2 {[%clk 0:02:17]}  c5 {[%clk 0:02:56]} 12. Nxd7 {[%clk 0:02:09]}  Qxd7 {[%clk 0:02:53]} 13. dxc5 {[%clk 0:02:05]}  bxc5 {[%clk 0:02:53]} 14. cxd5 {[%clk 0:01:57]}  exd5 {[%clk 0:02:54]} 15. Nc4 {[%clk 0:01:51]}  Qe6 {[%clk 0:02:38]} 16. Na5 {[%clk 0:01:25]}  Ba6 {[%clk 0:02:38]} 17. Rd2 {[%clk 0:01:17]}  Rac8 {[%clk 0:02:36]} 18. Rad1 {[%clk 0:01:15]}  d4 {[%clk 0:02:35]} 19. b3 {[%clk 0:01:13]}  Nd5 {[%clk 0:02:30]} 20. Bxd5 {[%clk 0:00:50]}  Qxd5 {[%clk 0:02:29]} 21. Nc4 {[%clk 0:00:50]}  Bb7 {[%clk 0:02:25]} 22. e4 {[%clk 0:00:14]}  Qh5 {[%clk 0:02:02]} 23. Re2 {[%clk 0:00:09]}  Qh3 {[%clk 0:02:00]} 24. f3 {[%clk 0:00:08]}  Qh5 {[%clk 0:01:59]} 25. Ne5 {[%clk 0:00:05]}  Bd6 {[%clk 0:01:54]} 26. Nd3 {[%clk 0:00:02]}  Bxf4 {[%clk 0:01:50]} 27. Nxf4 {[%clk 0:00:02]}  Qxf3 {[%clk 0:01:51]} 28. Rf1 {[%clk 0:00:01]}  Qg4 {[%clk 0:01:48]} 0-1


[Site "https://www.chess.com"]

[Event "Titled Tuesday Blitz November 29 Late 2022"]
[White "Melaugh, Shane"]
[Black "Hardaway, Brewington"]
[WhiteFideId "2509580"]
[BlackFideId "30941849"]
[WhiteElo "2025"]
[BlackElo "2159"]
[Result "0-1"]
[Round "07"]
[TimeControl "180+1"]
[Date "2022.11.30"]
[WhiteClock "0:02:29"]
[BlackClock "0:01:42"]

1. e4 {[%clk 0:03:00]}  e5 {[%clk 0:02:54]} 2. Nf3 {[%clk 0:03:00]}  Nc6 {[%clk 0:02:54]} 3. d4 {[%clk 0:03:00]}  exd4 {[%clk 0:02:54]} 4. Bc4 {[%clk 0:03:01]}  Nf6 {[%clk 0:02:47]} 5. Ng5 {[%clk 0:03:01]}  Ne5 {[%clk 0:02:44]} 6. Qxd4 {[%clk 0:03:00]}  Nxc4 {[%clk 0:02:43]} 7. Qxc4 {[%clk 0:03:01]}  Qe7 {[%clk 0:02:43]} 8. O-O {[%clk 0:02:58]}  h6 {[%clk 0:02:43]} 9. e5 {[%clk 0:02:53]}  hxg5 {[%clk 0:01:56]} 10. exf6 {[%clk 0:02:52]}  Qxf6 {[%clk 0:01:56]} 11. Qxc7 {[%clk 0:02:48]}  Bd6 {[%clk 0:01:53]} 12. Re1+ {[%clk 0:02:46]}  Kf8 {[%clk 0:01:53]} 13. Qa5 {[%clk 0:02:31]}  b6 {[%clk 0:01:44]} 14. Qxg5 {[%clk 0:02:29]}  Bxh2+ {[%clk 0:01:42]} 15. Kf1 {[%clk 0:02:29]}  Ba6+ {[%clk 0:01:42]} 0-1


[Site "https://www.chess.com"]